bitfinex-derivatives/quotes_BTCF0:USTF0_20250620
["timestamp","ask_amount","ask_price","bid_price","bid_amount"]
[1750427671898,0.1892667,105660.0,105650.0,1.20377388]
[1750427672096,0.1892667,105660.0,105650.0,1.42553468]
[1750427672288,0.1892667,105660.0,105650.0,1.39493468]
[1750427672488,0.2509667,105660.0,105650.0,1.39493468]
[1750427673496,0.2201667,105660.0,105650.0,1.39493468]
[1750427673693,0.2201667,105660.0,105650.0,1.42593468]
[1750427673694,0.1892667,105660.0,105650.0,1.42593468]
[1750427673897,0.1902667,105660.0,105650.0,1.90981678]
[1750427674191,0.00517407,105660.0,105650.0,1.90981678]
[1750427674384,0.19444077,105660.0,105650.0,2.22981678]
[1750427674591,0.19484077,105660.0,105650.0,2.23781678]
[1750427674797,0.19444077,105660.0,105650.0,2.25781678]
[1750427674984,0.19484077,105660.0,105650.0,1.90781678]
[1750427675398,0.19484077,105660.0,105650.0,1.91081678]
[1750427675785,0.19484077,105660.0,105650.0,1.43193468]
[1750427675991,1.03452287,105660.0,105650.0,0.84510888]
[1750427676298,1.09652287,105660.0,105650.0,0.65582428]
[1750427676497,0.61764077,105660.0,105650.0,0.65782428]
[1750427676898,0.61764077,105660.0,105650.0,0.84710888]
[1750427677089,0.61764077,105660.0,105650.0,0.65782428]
[1750427677291,0.61764077,105660.0,105650.0,0.65382428]
[1750427677796,0.27228924,105660.0,105650.0,0.82587108]
[1750427678797,0.27228924,105660.0,105650.0,0.85757108]
[1750427679801,0.27228924,105660.0,105650.0,0.66828648]
[1750427679993,0.27228924,105660.0,105650.0,0.82587118]
[1750427680194,1.11197134,105660.0,105650.0,0.00494648]
[1750427680395,1.11197134,105660.0,105650.0,0.00081298]
[1750427680606,1.11197134,105660.0,105650.0,0.63241298]
[1750427680996,1.11197134,105660.0,105650.0,0.00081298]
[1750427681301,1.79726734,105660.0,105650.0,0.00081298]
[1750427684000,0.1893026,105640.0,105630.0,0.2839647]
[1750427684198,1.04479579,105640.0,105630.0,0.2366347]
[1750427684390,1.10819579,105640.0,105630.0,0.8681547]
[1750427684595,0.62931369,105640.0,105630.0,0.8681547]
[1750427684796,0.62931369,105640.0,105630.0,0.9013547]
[1750427685195,0.26851369,105640.0,105630.0,0.9013547]
[1750427685510,0.01581109,105640.0,105630.0,1.7410368]
[1750427685800,0.20511369,105640.0,105630.0,1.4118368]
[1750427685999,0.20551369,105640.0,105630.0,0.95019311]
[1750427686304,0.20751369,105640.0,105630.0,0.95719311]
[1750427687205,0.20651369,105640.0,105630.0,0.95519311]
[1750427687506,0.20651369,105640.0,105630.0,1.03240295]
[1750427688106,0.20651369,105640.0,105630.0,1.02940295]
[1750427688306,0.20651369,105640.0,105630.0,1.39220295]
[1750427689197,0.01721109,105640.0,105630.0,1.39220295]
[1750427689402,0.20651369,105640.0,105630.0,1.39220295]
[1750427689701,0.01721109,105640.0,105630.0,1.87108505]
[1750427689910,0.01681109,105640.0,105630.0,2.20108505]
[1750427690093,0.01721109,105640.0,105630.0,2.20108505]
[1750427690296,0.01681109,105640.0,105630.0,2.20108505]
[1750427690500,0.01721109,105640.0,105630.0,1.56956505]
[1750427690711,0.0008,105650.0,105640.0,0.1893026]
[1750427690905,0.0008,105650.0,105640.0,2.6723868]
[1750427691209,0.0008,105650.0,105640.0,2.1935047]
[1750427691405,0.01544847,105660.0,105650.0,0.1892847]
[1750427691715,0.01544847,105660.0,105650.0,1.0289668]
[1750427692002,0.01584847,105660.0,105650.0,1.0289668]
[1750427692207,0.01544847,105660.0,105650.0,1.0289668]
[1750427692516,0.01584847,105660.0,105650.0,1.0289668]
[1750427693308,0.01684847,105660.0,105650.0,1.0299668]
[1750427693702,0.01684847,105660.0,105650.0,1.0319668]
[1750427694305,0.01684847,105660.0,105650.0,1.3919668]
[1750427694905,0.01784847,105660.0,105650.0,1.3919668]
[1750427695907,0.01684847,105660.0,105650.0,1.3919668]
[1750427697002,0.01684847,105660.0,105650.0,1.8312628]
[1750427697213,0.01684847,105660.0,105650.0,2.6493428]
[1750427697407,0.73901341,105700.0,105680.0,0.2365347]
[1750427697607,0.92822371,105700.0,105690.0,0.820373]
[1750427697910,0.35473651,105700.0,105690.0,1.181173]
[1750427698208,0.2680093,105700.0,105690.0,1.181173]
[1750427698413,0.2203103,105700.0,105690.0,1.181173]
[1750427698613,0.2207103,105700.0,105690.0,1.181173]
[1750427698917,0.2283103,105700.0,105690.0,1.181173]
[1750427699119,0.2287103,105700.0,105690.0,1.181173]
[1750427699308,0.0084,105700.0,105690.0,1.6610551]
[1750427699506,0.0154,105700.0,105690.0,1.6610551]
[1750427699810,0.026,105700.0,105690.0,1.183173]
[1750427700007,0.2155951,105700.0,105690.0,1.73933782]
[1750427700203,0.0264,105700.0,105690.0,1.26045572]
[1750427700413,0.026,105700.0,105690.0,1.73933782]
[1750427700614,0.0264,105700.0,105690.0,1.26045572]
[1750427701017,0.0264,105700.0,105690.0,1.73933782]
[1750427701317,0.026,105700.0,105690.0,2.11933782]
[1750427701510,0.001,105710.0,105700.0,0.1891951]
[1750427701817,0.25188481,105720.0,105710.0,0.1891773]
[1750427702109,0.25163354,105720.0,105710.0,1.18143984]
[1750427702509,0.73051564,105720.0,105710.0,1.18143984]
[1750427702711,0.28233354,105720.0,105710.0,1.18143984]
[1750427702917,0.25163354,105720.0,105710.0,1.18143984]
[1750427703307,0.26663354,105720.0,105710.0,1.18243984]
[1750427703816,0.26663354,105720.0,105710.0,1.18343984]
[1750427703817,0.34083354,105720.0,105710.0,1.18343984]
[1750427704913,0.34083354,105720.0,105710.0,1.21423984]
[1750427705418,0.10438314,105720.0,105710.0,1.21423984]
[1750427705613,0.07438314,105720.0,105710.0,1.21423984]
[1750427705814,0.26354254,105720.0,105710.0,1.21423984]
[1750427706416,0.07438314,105720.0,105710.0,1.21423984]
[1750427706616,0.07438314,105720.0,105710.0,1.24423984]
[1750427706814,0.04118314,105720.0,105710.0,1.24423984]
[1750427707918,0.26104254,105720.0,105710.0,1.24423984]
[1750427708321,0.26104254,105720.0,105710.0,1.18303974]
[1750427708615,0.77072464,105720.0,105710.0,0.82223974]
[1750427709008,0.77072464,105720.0,105710.0,1.18303974]
[1750427709821,0.29184254,105720.0,105710.0,1.18303974]
[1750427710009,0.29184254,105720.0,105710.0,0.63294254]
[1750427710010,1.13152464,105720.0,105710.0,0.63294254]
[1750427710215,1.79959074,105720.0,105710.0,0.00250254]
[1750427710622,1.32070864,105720.0,105710.0,0.00250254]
[1750427711015,1.79959074,105720.0,105710.0,0.00250254]
[1750427711220,2.04959074,105720.0,105710.0,0.00250254]
[1750427711424,1.86043134,105720.0,105690.0,0.163]
[1750427711622,0.189213,105690.0,105680.0,0.8076265]
[1750427711920,0.68397672,105690.0,105680.0,1.028754]
[1750427712116,0.71642799,105690.0,105680.0,1.389554]
[1750427712517,0.71642799,105690.0,105680.0,0.9825743]
[1750427712821,0.71742799,105690.0,105680.0,0.9895743]
[1750427713012,0.71742799,105690.0,105680.0,0.3592143]
[1750427713214,0.71742799,105690.0,105680.0,0.80028]
[1750427713415,0.23854589,105690.0,105680.0,0.80028]
[1750427713722,0.71742799,105690.0,105680.0,0.80028]
[1750427713918,0.71742799,105690.0,105680.0,0.007]
[1750427714524,0.74782799,105690.0,105680.0,0.007]
[1750427714822,0.74782799,105690.0,105680.0,0.009]
[1750427716210,1.10862799,105690.0,105680.0,0.009]
[1750427716925,0.74782799,105690.0,105680.0,0.009]
[1750427717514,0.74782799,105690.0,105680.0,0.5590309]
[1750427717515,0.23674589,105690.0,105680.0,0.5590309]
[1750427717722,0.20634589,105690.0,105680.0,1.232113]
[1750427717920,0.20634589,105690.0,105680.0,1.264013]
[1750427718225,0.20674589,105690.0,105680.0,1.264013]
[1750427718518,0.01753289,105690.0,105680.0,1.264013]
[1750427718717,0.01753289,105690.0,105680.0,1.584013]
[1750427718924,0.01713289,105690.0,105680.0,1.584013]
[1750427719121,0.00125127,105690.0,105680.0,1.584013]
[1750427719716,0.00165127,105690.0,105680.0,1.584013]
[1750427720021,0.00125127,105690.0,105680.0,1.584013]
[1750427720321,0.00125127,105690.0,105680.0,1.773253]
[1750427720514,0.18942907,105710.0,105700.0,0.1891951]
[1750427720714,0.18942907,105710.0,105700.0,1.7031951]
[1750427720715,0.18910347,105710.0,105700.0,1.7031951]
[1750427721016,0.18830347,105710.0,105700.0,1.7655951]
[1750427721219,0.18870347,105710.0,105700.0,1.7655951]
[1750427721918,0.19030347,105710.0,105700.0,1.7655951]
[1750427722118,0.19070347,105710.0,105700.0,1.7655951]
[1750427722421,0.0024,105710.0,105700.0,2.2444772]
[1750427722612,0.0024,105710.0,105700.0,2.6144772]
[1750427722817,0.002,105710.0,105700.0,2.6144772]
[1750427723122,0.0054,105710.0,105700.0,2.2444772]
[1750427723422,0.1945766,105710.0,105700.0,2.2444772]
[1750427724526,0.1945766,105710.0,105700.0,1.2628821]
[1750427724726,0.1945766,105710.0,105700.0,2.0549621]
[1750427724927,0.1945766,105710.0,105700.0,2.13215979]
[1750427725129,0.1945766,105710.0,105700.0,1.65327769]
[1750427725428,0.1945766,105710.0,105700.0,2.13215979]
[1750427725429,0.0054,105710.0,105700.0,2.13215979]
[1750427725724,0.1945766,105710.0,105700.0,2.13215979]
[1750427725929,0.19875067,105710.0,105700.0,1.65319769]
[1750427726227,0.19875067,105710.0,105700.0,0.86119769]
[1750427726524,0.67763277,105710.0,105700.0,0.23951769]
[1750427726729,0.1891945,105700.0,105690.0,0.01718119]
[1750427726929,0.7296766,105700.0,105690.0,0.64569559]
[1750427727116,1.0904766,105700.0,105690.0,0.64569559]
[1750427727322,0.7296766,105700.0,105690.0,0.64569559]
[1750427727519,0.2507945,105700.0,105690.0,0.64569559]
[1750427727724,0.7296766,105700.0,105690.0,0.64569559]
[1750427727926,1.0904766,105700.0,105690.0,0.64569559]
[1750427728125,0.6125945,105700.0,105690.0,0.64969559]
[1750427728326,1.0914766,105700.0,105690.0,0.02005559]
[1750427728630,1.0918766,105700.0,105690.0,0.64957559]
[1750427728826,1.0918766,105700.0,105690.0,0.004]
[1750427728827,1.5311006,105700.0,105690.0,0.004]
[1750427729230,1.2811006,105700.0,105690.0,0.004]
[1750427730533,1.0918766,105700.0,105690.0,0.004]
[1750427731834,1.0914766,105700.0,105690.0,0.004]
[1750427732026,1.0918766,105700.0,105690.0,0.004]
[1750427732928,0.1892308,105680.0,105670.0,0.69061327]
[1750427733129,0.1892308,105680.0,105670.0,1.48237327]
[1750427733423,0.2213308,105680.0,105670.0,1.48237327]
[1750427734334,0.2213308,105680.0,105670.0,1.48537327]
[1750427734731,0.1892308,105680.0,105670.0,1.48537327]
[1750427734938,0.3036002,105690.0,105680.0,0.1892307]
[1750427735141,0.29942613,105690.0,105680.0,1.0949128]
[1750427735639,0.29982613,105690.0,105680.0,1.0949128]
[1750427735843,0.1896225,105690.0,105680.0,1.0949128]
[1750427736134,0.1896225,105690.0,105680.0,1.8865128]
[1750427736334,0.1892225,105690.0,105680.0,1.8865128]
[1750427736740,0.1896225,105690.0,105680.0,1.8865128]
[1750427737441,0.1906225,105690.0,105680.0,1.8915128]
[1750427738137,0.0014,105690.0,105680.0,2.2635128]
[1750427738351,0.3310839,105710.0,105700.0,0.1891953]
[1750427738551,0.3299583,105710.0,105700.0,1.8203174]
[1750427738751,0.3299583,105710.0,105700.0,1.8812174]
[1750427738939,0.2826595,105710.0,105700.0,1.4023353]
[1750427739146,0.2834595,105710.0,105700.0,1.7631353]
[1750427739347,0.2826595,105710.0,105700.0,1.7631353]
[1750427739545,0.2830595,105710.0,105700.0,1.7631353]
[1750427739949,0.2860595,105710.0,105700.0,1.7631353]
[1750427740143,0.1925774,105710.0,105700.0,2.2420174]
[1750427740343,0.1921774,105710.0,105700.0,2.2420174]
[1750427740552,0.1955774,105710.0,105700.0,2.2430174]
[1750427740857,0.1951774,105710.0,105700.0,2.2430174]
[1750427741047,0.1955774,105710.0,105700.0,2.2430174]
[1750427741247,0.1955774,105710.0,105700.0,1.7641353]
[1750427741856,0.1955774,105710.0,105700.0,0.9726953]
[1750427742147,0.1955774,105710.0,105700.0,1.4030953]
[1750427743655,0.1955774,105710.0,105700.0,0.6118953]
[1750427743845,0.1955774,105710.0,105700.0,1.4030553]
[1750427745345,0.1955772,105710.0,105700.0,1.8819374]
[1750427746151,0.1955772,105710.0,105700.0,1.8816574]
[1750427748156,0.1955772,105710.0,105700.0,0.6118953]
[1750427748353,0.1955772,105710.0,105700.0,1.4026553]
[1750427748550,0.2175811,105710.0,105700.0,1.4026553]
[1750427749259,0.22175517,105710.0,105700.0,1.4026553]
[1750427749652,0.03257797,105710.0,105700.0,1.4026553]
[1750427749851,0.03257797,105710.0,105700.0,1.8815374]
[1750427750059,0.03257797,105710.0,105700.0,2.2423374]
[1750427750850,0.03217797,105710.0,105700.0,2.2423374]
[1750427751052,0.03257797,105710.0,105700.0,3.05837978]
[1750427751257,0.001,105740.0,105710.0,0.0472903]
[1750427751557,0.24208092,105740.0,105730.0,0.5499411]
[1750427752055,0.01568663,105760.0,105730.0,1.96530122]
[1750427752260,0.01568663,105760.0,105750.0,1.0287875]
[1750427752455,0.01568663,105760.0,105750.0,1.02903877]
[1750427752660,0.20477413,105760.0,105750.0,0.97445667]
[1750427752956,0.01568663,105760.0,105750.0,1.76405667]
[1750427753257,0.20517413,105760.0,105750.0,0.97445667]
[1750427753457,0.04778663,105760.0,105750.0,1.76401667]
[1750427753655,0.05078663,105760.0,105750.0,1.76401667]
[1750427754153,0.0351,105760.0,105750.0,1.76401667]
[1750427754356,0.0371,105760.0,105750.0,1.76401667]
[1750427754547,0.2261875,105760.0,105750.0,0.94225667]
[1750427754750,0.7355696,105760.0,105750.0,0.58145667]
[1750427754951,0.7355696,105760.0,105750.0,1.37077667]
[1750427755255,0.2566875,105760.0,105750.0,1.37077667]
[1750427755458,0.7355696,105760.0,105750.0,1.33947667]
[1750427757556,0.2566875,105760.0,105750.0,1.33947667]
[1750427757956,0.2566875,105760.0,105750.0,1.37087667]
[1750427758259,0.0676,105760.0,105750.0,1.37087667]
[1750427758460,0.07177407,105760.0,105750.0,1.37087667]
[1750427758648,0.00957407,105760.0,105750.0,1.40207667]
[1750427759164,0.00957407,105760.0,105750.0,2.22095877]
[1750427759365,0.005,105760.0,105750.0,1.88095877]
[1750427759554,0.0054,105760.0,105750.0,2.21095877]
[1750427759955,0.002,105760.0,105750.0,2.21095877]
[1750427760157,0.0024,105760.0,105750.0,1.88395877]
[1750427760364,0.002,105760.0,105750.0,2.25395877]
[1750427760660,0.0024,105760.0,105750.0,2.25395877]
[1750427760861,0.0004,105760.0,105750.0,1.40507667]
[1750427761057,0.0014,105760.0,105750.0,1.41207667]
[1750427761252,0.0014,105760.0,105750.0,2.27095877]
[1750427761458,0.0004,105760.0,105750.0,2.27295877]
[1750427761663,0.0014,105760.0,105750.0,1.89295877]
[1750427761861,0.0014,105760.0,105750.0,1.10363877]
[1750427762063,0.0014,105760.0,105750.0,1.89243877]
[1750427762367,0.0014,105760.0,105750.0,1.10363877]
[1750427762664,0.0014,105760.0,105750.0,1.89239877]
[1750427764162,0.0014,105760.0,105750.0,2.20239877]
[1750427764554,0.00557407,105760.0,105750.0,1.89239877]
[1750427765364,0.00557407,105760.0,105750.0,0.43565127]
[1750427765560,0.48445617,105760.0,105750.0,0.37305127]
[1750427765760,0.57207196,105760.0,105750.0,1.18923667]
[1750427766459,0.56789789,105760.0,105750.0,1.18923667]
[1750427766668,0.08901579,105760.0,105750.0,1.18923667]
[1750427767261,0.05611579,105760.0,105750.0,1.22173667]
[1750427767457,0.02748986,105760.0,105750.0,1.73291877]
[1750427768466,0.00517407,105760.0,105750.0,1.73291877]
[1750427768661,0.0014,105760.0,105750.0,1.73291877]
[1750427768970,0.0014,105760.0,105750.0,1.41519667]
[1750427769269,0.0328,105760.0,105750.0,1.41519667]
[1750427769659,0.03697407,105760.0,105750.0,1.41519667]
[1750427770066,0.03697407,105760.0,105750.0,1.41511667]
[1750427770373,0.06787407,105760.0,105750.0,1.38281667]
[1750427770766,0.06787407,105760.0,105750.0,0.59465667]
[1750427771071,0.73584417,105760.0,105750.0,0.56215667]
[1750427771373,0.73584417,105760.0,105750.0,1.35023667]
[1750427772057,0.25696207,105760.0,105750.0,1.35023667]
[1750427772463,0.00557407,105760.0,105750.0,2.21617056]
[1750427772664,0.00557407,105760.0,105750.0,2.46679056]
[1750427772866,0.00517407,105760.0,105750.0,2.46679056]
[1750427773071,0.00557407,105760.0,105750.0,2.46679056]
[1750427773264,0.00517407,105760.0,105750.0,2.46679056]
[1750427773465,0.00557407,105760.0,105750.0,2.46679056]
[1750427774064,0.001,105770.0,105760.0,0.1890885]
[1750427774374,0.001,105770.0,105760.0,1.4331706]
[1750427774565,0.0014,105770.0,105760.0,1.43342187]
[1750427774765,0.001,105770.0,105760.0,1.43342187]
[1750427774966,0.0014,105770.0,105760.0,1.43342187]
[1750427775171,0.0024,105770.0,105760.0,1.43942187]
[1750427775375,0.0024,105770.0,105760.0,1.91830397]
[1750427775563,0.01647861,105790.0,105780.0,0.1890527]
[1750427775866,0.01567861,105790.0,105780.0,2.2416948]
[1750427776073,0.01607861,105790.0,105780.0,2.2416948]
[1750427776276,0.01607861,105790.0,105780.0,2.24194607]
[1750427776472,0.01607861,105790.0,105780.0,2.63884077]
[1750427776777,0.01567861,105790.0,105780.0,2.63884077]
[1750427776972,0.01667861,105790.0,105780.0,2.63884077]
[1750427777268,0.01707861,105790.0,105780.0,2.63884077]
[1750427777874,0.01807861,105790.0,105780.0,2.63884077]
[1750427778367,0.01767861,105790.0,105780.0,2.63884077]
[1750427778565,0.001,105800.0,105790.0,0.1890349]
[1750427778772,0.001,105800.0,105790.0,0.61278617]
[1750427779267,0.0014,105800.0,105790.0,0.61278617]
[1750427779469,0.02336902,105800.0,105790.0,0.61278617]
[1750427780067,0.02936902,105800.0,105790.0,0.61378617]
[1750427780268,0.02936902,105800.0,105790.0,1.88002827]
[1750427780576,0.21838602,105800.0,105790.0,1.40114617]
[1750427780875,0.06116902,105800.0,105790.0,1.88002827]
[1750427781071,0.25018602,105800.0,105790.0,1.88002827]
[1750427781277,0.28018602,105800.0,105790.0,1.10515236]
[1750427781569,0.28018602,105800.0,105790.0,0.62627026]
[1750427781770,0.75906812,105800.0,105790.0,0.36205127]
[1750427781963,0.75906812,105800.0,105790.0,0.62713127]
[1750427781964,1.17588047,105800.0,105790.0,0.62713127]
[1750427782364,1.55891612,105800.0,105790.0,0.62713127]
[1750427782574,1.63359926,105800.0,105790.0,0.62713127]
[1750427782874,1.63359926,105800.0,105760.0,1.5088031]
[1750427782875,0.1890709,105770.0,105760.0,1.5088031]
[1750427783071,0.21103992,105770.0,105760.0,1.4773479]
[1750427783270,0.27343992,105770.0,105760.0,0.6913079]
[1750427783474,0.27343992,105770.0,105760.0,1.4773079]
[1750427783874,0.27343992,105770.0,105760.0,0.6913079]
[1750427784075,0.75332202,105770.0,105760.0,0.8696864]
[1750427784275,0.27443992,105770.0,105760.0,1.2304864]
[1750427784473,0.27443992,105770.0,105760.0,1.23073767]
[1750427784975,0.27443992,105770.0,105760.0,0.86993767]
[1750427785276,0.27443992,105770.0,105760.0,1.23073767]
[1750427785675,0.27443992,105770.0,105760.0,1.23373767]
[1750427786176,0.27443992,105770.0,105760.0,1.87273977]
[1750427786364,0.05556902,105770.0,105760.0,1.93713977]
[1750427786569,0.24464012,105770.0,105760.0,1.93713977]
[1750427786769,0.05516902,105770.0,105760.0,1.93713977]
[1750427787000,0.24464012,105770.0,105760.0,1.93713977]
[1750427787374,0.24424012,105770.0,105760.0,1.93713977]
[1750427787675,0.05556902,105770.0,105760.0,1.93713977]
[1750427787875,0.24464012,105770.0,105760.0,1.93713977]
[1750427788673,0.24464012,105770.0,105760.0,1.45825767]
[1750427789073,0.24464012,105770.0,105760.0,1.39385767]
[1750427789272,0.27734012,105770.0,105760.0,0.60801767]
[1750427789475,0.27734012,105770.0,105760.0,1.39381767]
[1750427791280,0.75622222,105770.0,105760.0,0.60801767]
[1750427791580,0.81227324,105770.0,105760.0,1.03281767]
[1750427791775,0.81227324,105770.0,105760.0,0.98594027]
[1750427791978,0.81227324,105770.0,105760.0,0.79685127]
[1750427792278,0.81227324,105770.0,105760.0,0.01125127]
[1750427792279,1.30827324,105770.0,105760.0,0.01125127]
[1750427792484,2.12680136,105770.0,105760.0,0.62668106]
[1750427792680,2.12680136,105770.0,105760.0,0.00144106]
[1750427794181,1.87680136,105770.0,105760.0,0.00144106]
[1750427794481,1.88604835,105770.0,105760.0,0.00144106]
[1750427794683,2.13604835,105770.0,105760.0,0.00144106]
[1750427794877,0.1891248,105740.0,105730.0,0.90023972]
[1750427795180,0.1891248,105740.0,105730.0,1.39934912]
[1750427795380,0.1891605,105720.0,105710.0,0.00094594]
[1750427795580,0.72404712,105720.0,105710.0,0.00094594]
[1750427795771,1.16150858,105720.0,105710.0,0.19012434]
[1750427795977,0.32182648,105720.0,105710.0,0.19012434]
[1750427796187,0.26582196,105720.0,105710.0,0.19012434]
[1750427796585,1.10550406,105720.0,105710.0,0.19012434]
[1750427796773,1.12760756,105720.0,105710.0,0.00094594]
[1750427797174,1.12960756,105720.0,105710.0,0.19112444]
[1750427797378,1.12960756,105720.0,105710.0,0.00194594]
[1750427797584,1.60848966,105720.0,105710.0,0.00194594]
[1750427797786,1.18561208,105720.0,105710.0,0.00394594]
[1750427798182,1.12960756,105720.0,105710.0,0.00394594]
[1750427798382,0.33112,105700.0,105680.0,0.12875731]
[1750427798575,0.91859124,105690.0,105670.0,1.479722]
[1750427798780,0.6992143,105680.0,105670.0,1.479722]
[1750427798981,0.2526322,105680.0,105670.0,1.479722]
[1750427799180,0.25288347,105680.0,105670.0,0.694562]
[1750427799382,0.25288347,105680.0,105670.0,1.479802]
[1750427799683,0.25288327,105680.0,105670.0,1.512702]
[1750427799881,0.25288327,105680.0,105670.0,1.525702]
[1750427800079,0.25288327,105680.0,105670.0,1.557102]
[1750427800276,0.25288347,105680.0,105670.0,1.557102]
[1750427800478,0.00025127,105680.0,105670.0,1.557102]
[1750427800683,0.00025127,105680.0,105670.0,2.3759841]
[1750427800883,0.00065127,105680.0,105670.0,2.38010908]
[1750427801080,0.00265127,105680.0,105670.0,2.17310908]
[1750427801274,0.00225127,105680.0,105670.0,2.18010908]
[1750427801479,0.00225127,105680.0,105670.0,2.06010908]
[1750427801679,0.00250254,105680.0,105670.0,2.18010908]
[1750427802084,0.00290254,105680.0,105670.0,2.18010908]
[1750427802689,0.00290254,105680.0,105670.0,2.38010908]
[1750427802987,0.00290254,105680.0,105670.0,2.20010908]
[1750427803380,0.01539814,105690.0,105670.0,2.06012658]
[1750427803589,0.0008,105700.0,105690.0,0.1892143]
[1750427803786,0.2539743,105720.0,105710.0,0.1891785]
[1750427803986,0.496,105730.0,105720.0,0.1891606]
[1750427804283,0.2703187,105740.0,105730.0,0.1891427]
[1750427804485,0.29223475,105740.0,105730.0,0.97447397]
[1750427805282,0.001,105740.0,105730.0,1.33527397]
[1750427805580,0.001,105740.0,105730.0,1.36737397]
[1750427805782,0.001,105740.0,105730.0,1.39757397]
[1750427805983,0.0014,105740.0,105730.0,1.39757397]
[1750427806178,0.0014,105740.0,105730.0,1.87645607]
[1750427806385,0.001,105740.0,105730.0,1.87645607]
[1750427806585,0.0014,105740.0,105730.0,1.87645607]
[1750427806787,0.0054,105740.0,105730.0,1.87745607]
[1750427806991,0.005,105740.0,105730.0,1.87745607]
[1750427807191,0.0054,105740.0,105730.0,1.87645607]
[1750427807392,0.0064,105740.0,105730.0,1.88645607]
[1750427808294,0.0024,105740.0,105730.0,1.89045607]
[1750427808495,0.1915249,105740.0,105730.0,1.41157397]
[1750427808681,0.1915249,105740.0,105730.0,0.62649397]
[1750427808885,0.1915249,105740.0,105730.0,1.41125397]
[1750427809683,0.0024,105740.0,105730.0,1.89013607]
[1750427810286,0.00617407,105740.0,105730.0,1.89013607]
[1750427810486,0.00657407,105740.0,105730.0,1.89013607]
[1750427810891,0.00657407,105740.0,105730.0,1.41125397]
[1750427811091,0.00657407,105740.0,105730.0,1.89013607]
[1750427811280,0.00617407,105740.0,105730.0,1.89013607]
[1750427811686,0.00657407,105740.0,105730.0,1.89013607]
[1750427812287,0.19569897,105740.0,105730.0,1.89013607]
[1750427812482,0.19569897,105740.0,105730.0,1.40977397]
[1750427812682,0.19569897,105740.0,105730.0,0.62649397]
[1750427812889,0.19569897,105740.0,105730.0,1.40973397]
[1750427813491,0.19569897,105740.0,105730.0,0.62649397]
[1750427813689,0.19569897,105740.0,105730.0,1.04893397]
[1750427814189,0.19569897,105740.0,105730.0,1.40973397]
[1750427815198,0.21774985,105740.0,105730.0,1.40973397]
[1750427816187,0.19569897,105740.0,105730.0,1.40973397]
[1750427816389,0.21775317,105740.0,105730.0,1.40973397]
[1750427817092,0.02862827,105740.0,105730.0,1.40973397]
[1750427817287,0.19569897,105740.0,105730.0,1.40973397]
[1750427817594,0.00657407,105740.0,105730.0,1.88861607]
[1750427818692,0.19569897,105740.0,105730.0,1.88861607]
[1750427818893,0.00657407,105740.0,105730.0,1.88861607]
[1750427819093,0.19569897,105740.0,105730.0,1.88861607]
[1750427819590,0.19569897,105740.0,105730.0,1.40973397]
[1750427820189,0.00657407,105740.0,105730.0,1.40921397]
[1750427820591,0.00657407,105740.0,105730.0,1.88809607]
[1750427820784,0.19569897,105740.0,105730.0,1.40913397]
[1750427821496,0.19569897,105740.0,105730.0,0.20339407]
[1750427821497,0.69666541,105740.0,105730.0,0.20339407]
[1750427821685,0.75946541,105740.0,105730.0,0.79681127]
[1750427821890,0.75946541,105740.0,105730.0,0.98595407]
[1750427822087,0.28058331,105740.0,105730.0,1.34675407]
[1750427822295,0.28058331,105740.0,105730.0,1.01665407]
[1750427822594,0.28058331,105740.0,105730.0,1.37745407]
[1750427825595,0.28058331,105740.0,105730.0,0.98595407]
[1750427825596,0.75946541,105740.0,105730.0,0.98595407]
[1750427825801,0.75946541,105740.0,105730.0,0.20339407]
[1750427826004,0.75946541,105740.0,105730.0,0.98567407]
[1750427826303,0.75946541,105740.0,105730.0,0.98563407]
[1750427826599,0.75946541,105740.0,105730.0,0.01425127]
[1750427826793,0.1891428,105730.0,105720.0,0.01731811]
[1750427826991,1.11350924,105730.0,105720.0,0.82951881]
[1750427827209,0.27382714,105730.0,105720.0,1.19031881]
[1750427827399,0.27382714,105730.0,105720.0,1.38007881]
[1750427828101,0.27422714,105730.0,105720.0,1.38007881]
[1750427828301,0.27422714,105730.0,105720.0,1.02527881]
[1750427828502,0.27522714,105730.0,105720.0,1.03027881]
[1750427828697,0.27522714,105730.0,105720.0,0.21747881]
[1750427828894,0.75410924,105730.0,105720.0,0.02831811]
[1750427829099,1.11490924,105730.0,105720.0,0.64119811]
[1750427829403,0.75410924,105730.0,105720.0,0.83335871]
[1750427829603,0.27422714,105730.0,105720.0,1.19315871]
[1750427829806,0.27482714,105730.0,105720.0,1.25795871]
[1750427830001,0.27522714,105730.0,105720.0,1.25795871]
[1750427830705,0.27522714,105730.0,105720.0,0.89715871]
[1750427831407,0.27922714,105730.0,105720.0,0.89415871]
[1750427832107,0.27522714,105730.0,105720.0,1.25495871]
[1750427832707,0.21262714,105730.0,105720.0,1.73584081]
[1750427832911,0.21222714,105730.0,105720.0,1.73584081]
[1750427833110,0.02348434,105730.0,105720.0,1.73584081]
[1750427833301,0.02308434,105730.0,105720.0,1.73584081]
[1750427833607,0.02348434,105730.0,105720.0,1.73584081]
[1750427833807,0.02308434,105730.0,105720.0,1.73584081]
[1750427834007,0.02348434,105730.0,105720.0,1.73584081]
[1750427834397,0.21262714,105730.0,105720.0,1.78574081]
[1750427834597,0.21262714,105730.0,105720.0,1.46565871]
[1750427835212,0.02348434,105730.0,105720.0,1.46565871]
[1750427835397,0.02348434,105730.0,105720.0,0.68397871]
[1750427835711,0.02348434,105730.0,105720.0,1.94450081]
[1750427836301,0.21262714,105730.0,105720.0,1.16286081]
[1750427836514,0.21262714,105730.0,105720.0,1.46557871]
[1750427837009,0.21262714,105730.0,105720.0,1.46582998]
[1750427837307,0.69150924,105730.0,105720.0,0.65272998]
[1750427837611,0.24282714,105730.0,105720.0,1.43428998]
[1750427837804,0.24282714,105730.0,105720.0,1.46708998]
[1750427837999,0.24282714,105730.0,105720.0,1.43420998]
[1750427838214,0.27292714,105730.0,105720.0,1.43420998]
[1750427838605,0.27292714,105730.0,105720.0,1.43416998]
[1750427839305,0.02348434,105730.0,105720.0,1.91305208]
[1750427839607,0.02348434,105730.0,105720.0,1.94585208]
[1750427840112,0.02348434,105730.0,105720.0,2.29585208]
[1750427840811,0.02765841,105730.0,105720.0,2.29585208]
[1750427841012,0.02725841,105730.0,105720.0,2.29585208]
[1750427841213,0.02765841,105730.0,105720.0,2.29585208]
[1750427841404,0.02725841,105730.0,105720.0,2.29585208]
[1750427841606,0.02765841,105730.0,105720.0,2.29585208]
[1750427842911,0.21680171,105730.0,105720.0,1.43268998]
[1750427843309,0.21680171,105730.0,105720.0,1.46328998]
[1750427843611,0.02765841,105730.0,105720.0,1.46328998]
[1750427843917,0.21680171,105730.0,105720.0,1.46328998]
[1750427844210,0.21680171,105730.0,105720.0,1.46316998]
[1750427844711,0.21680171,105730.0,105720.0,0.65272998]
[1750427844914,0.27970171,105730.0,105720.0,1.03946998]
[1750427845713,0.27970171,105730.0,105720.0,1.40026998]
[1750427845915,0.27970171,105730.0,105720.0,0.62042998]